Workbook

Sheet عبدالرحمن احسان
D1: برنامج المتابعة الالكترونية التجريبي لحلقة عبد الله بن مسعود | H1: بمكة المكرمة | J1: التابعة لجمعية | K1: تحفيظ القرآن الكريم | N1: نسعى لمواكبة العصر في تطوراته لخدمة كتاب الله عزوجل | R1: 1 | S1: تعليما | T1: 2 | U1: وتعلما | V1: 3 | W1: وتقنيا | X1: على وفق خطة مرسومة | Z1: بالقرآن نرقى وبه نرتقي | AA1: أنشأه: عبد الرحمن إمام
C2: تاريخ بداية الحلقة | D2: معلم الحلقة | H2: اسم الحلقة | K2: عدد أسطر الدرس | L2: =I9+I10+I11+I12+I13+I14+I15+I16+I17+I18+I19+I20+I21+I22+I23+I24+I25+I26+I27+I28 -> 91 | N2: عدد صفحات الدرس المحفوظ | O2: =L2/15 -> 6.066666667 | Q2: عدد الأخطاء | R2: =J9+J10+J11+J12+J13+J14+J15+J16+J17+J18+J19+J20+J21+J22+J23+J24+J25+J26+J27+J28 -> 21 | U2: المواظبة | V2: السلوك | X2: نسبة الفصل الأول | Y2: المستوى الحالي | Z2: أبيات التحفة المحفوظة | AA2: معدل الدرجات
C3: 1441/12/18 | D3: عبد الرحمن إمام موسى عثمان | H3: عبد الله بن مسعود رضي الله عنه | K3: عدد أسطر بداية السورة | L3: =L9+L10+L11+L12+L13+L14+L15+L16+L17+L18+L19+L20+L21+L22+L23+L24+L25+L26+L27+L28 -> 118 | N3: عدد صفحات بداية السورة | O3: =L3/15 -> 7.866666667 | Q3: عدد الأخطاء | R3: =M9+M10+M11+M12+M13+M14+M15+M16+M17+M18+M19+M20+M21+M22+M23+M24+M25+M26+M27+M28 -> 65 | T3: حضور مبكر | V3: عدد أيام التأخر | X3: =AA3 -> 85.33333333 | AA3: =AA5/6 -> 85.33333333
C4: اسم الطالب | D4: عبدالرحمن احسان | H4: رقم الطالب | I4: 1001 | K4: عدد أسطر سورة قبل الدرس | L4: =O9+O10+O11+O12+O13+O14+O15+O16+O17+O18+O19+O20+O21+O22+O23+O24+O25+O26+O27+O2 -> 941.0666667 | N4: عدد صفحات سورة قبل الدرس | O4: =L4/15 -> 62.73777778 | Q4: عدد الأخطاء | R4: =P9+P10+P11+P12+P13+P14+P15+P16+P17+P18+P19+P20+P21+P22+P23+P24+P25+P26+P27+P28 -> 65 | T4: =COUNTIFS(G9:G28,"ح") -> 0 | V4: =COUNTIF(G9:G28,"ت") -> 0 | X4: نسبة الفصل الثاني | Y4: درجة أخر اختبار | Z4: أبيات الجزرية المحفوظة | AA4: مجموع النقاط
C5: رسالة خاصة بالطالب | K5: عدد أسطر المراجعة | L5: =R9+R10+R11+R12+R13+R14+R15+R16+R17+R18+R19+R20+R21+R22+R23+R24+R25+R26+R27+R28 -> 400 | N5: عدد صفحات المراجعة | O5: =L5/15 -> 26.66666667 | Q5: عدد الأخطاء | R5: =S9+S10+S11+S12+S13+S14+S15+S16+S17+S18+S19+S20+S21+S22+S23+S24+S25+S26+S27+S28 -> 86 | T5: استئذان | V5: عدد أيام الغياب | AA5: =AA9+AA10+AA11+AA12+AA13+AA14+AA15+AA16+AA17+AA18+AA19+AA20+AA21+AA22+AA23+AA24+AA25+AA26+AA27+AA28 -> 512
C6: رسالة خاصة بالحلقة | G6: وقتها | H6: بعد صلاة العشاء عن بعد | N6: المجموع الكلي لصفحات المراجعة | T6: =COUNTIF(G9:G28,"م") -> 0 | V6: =COUNTIF(G9:G28,"غ") -> 0 | X6: المعدل الكلي | Z6: أبيات الشاطبية المحفوظة | AA6: النقاط المستبدلة
D7: مدة تجربة البرنامج من تاريخ 1442/3/22هـ إلى نهاية الفصل الأول 1442/4/25 هــ | N7: =O5+O4+O3 -> 97.27111111
C8: الأيام | D8: التاريخ | E8: المسار | F8: المقررات | G8: تحضير | H8: الدرس | I8: سطر | J8: خطأ | K8: بداية السورة | L8: سطر | M8: خطأ | N8: سورة قبل الدرس | O8: سطر | P8: خطأ | Q8: المراجعة | R8: سطر | S8: خطأ | T8: ملاحظات في التسميع | U8: الدرس 10 | V8: التجويد 10 | W8: بداية السورة 10 | X8: سورة قبل الدرس 10 | Y8: المراجعة 10 | Z8: المشاركة+ التفاعل 10 | AA8: مجموع النقاط اليومي | AB8: الملاحظات
C9: الاحد | D9: 1442/3/29 | E9: علمي | F9: قرآن | G9: حاضر | H9: الانعام | I9: 4 | J9: 2 | K9: الانعام | L9: 6 | M9: 3 | N9: السورة التي قبلها | O9: 55 | P9: 2 | Q9: جزئين | R9: 20 | S9: 5 | T9: التجويد | U9: 5 | V9: 4 | W9: 5 | X9: 10 | Y9: 5 | Z9: 9 | AA9: =Z9+Y9+X9+W9+U9+V9 -> 38
C10: الاثنين | D10: 1442/4/1 | E10: علمي | F10: قرآن | G10: حاضر | H10: المائدة | I10: 5 | J10: 0 | K10: المائدة | L10: 2 | M10: 2 | N10: السورة التي قبلها | O10: 22 | P10: 3 | Q10: جزئين | R10: 20 | S10: 2 | T10: الاداء | U10: 8 | V10: 6 | W10: 4 | X10: 2 | Y10: 2 | Z10: 2 | AA10: =Z10+Y10+X10+W10+U10+V10 -> 24
C11: الثلاثاء | D11: 1442/4/2 | E11: علمي | F11: قرآن | G11: حاضر | H11: البقرة | I11: 2 | J11: 1 | K11: البقرة | L11: 5 | M11: 5 | N11: السورة التي قبلها | O11: 11 | P11: 1 | Q11: جزئين | R11: 20 | S11: 14 | T11: الاحكام العامة | U11: 2 | V11: 3 | W11: 2 | X11: 3 | Y11: 6 | Z11: 3 | AA11: 19
C12: الاربعاء | D12: 1442/4/3 | E12: علمي | F12: قرآن | G12: حاضر | H12: آل عمران | I12: 1 | J12: 2 | K12: آل عمران | L12: 4 | M12: 2 | N12: السورة التي قبلها | O12: 55 | P12: 2 | Q12: جزئين | R12: 20 | S12: 1 | T12: التجويد | U12: 3 | V12: 8 | W12: 8 | X12: 5 | Y12: 3 | Z12: 10 | AA12: 37
C13: الخميس | D13: 1442/4/4 | E13: علمي | F13: قرآن | G13: حاضر | H13: النساء | I13: 3 | J13: 0 | K13: النساء | L13: 3 | M13: 1 | N13: السورة التي قبلها | O13: 33 | P13: 3 | Q13: جزئين | R13: 20 | S13: 2 | T13: الاداء | U13: 4 | V13: 2 | W13: 4 | X13: 6 | Y13: 6 | Z13: 10 | AA13: 32
C14: الاحد | D14: 1442/4/7 | E14: علمي | F14: قرآن | G14: حاضر | H14: التوبة | I14: 6 | J14: 1 | K14: التوبة | L14: 1 | M14: 5 | N14: السورة التي قبلها | O14: 22 | P14: 5 | Q14: جزئين | R14: 20 | S14: 3 | T14: الاحكام العامة | U14: 4 | V14: 4 | W14: 2 | X14: 4 | Y14: 2 | Z14: 10 | AA14: 26
C15: الاثنين | D15: 1442/4/8 | E15: علمي | F15: قرآن | G15: حاضر | H15: آل عمران | I15: 9 | J15: 2 | K15: آل عمران | L15: 5 | M15: 2 | N15: السورة التي قبلها | O15: 66 | P15: 0 | Q15: جزئين | R15: 20 | S15: 6 | T15: التجويد | U15: 2 | V15: 2 | W15: 3 | X15: 5 | Y15: 5 | Z15: 0 | AA15: 17
C16: الثلاثاء | D16: 1442/4/9 | E16: علمي | F16: قرآن | G16: حاضر | H16: هود | I16: 8 | J16: 0 | K16: هود | L16: 2 | M16: 4 | N16: السورة التي قبلها | O16: 44 | P16: 2 | Q16: جزئين | R16: 20 | S16: 4 | T16: الاداء | U16: 8 | V16: 6 | W16: 5 | X16: 8 | Y16: 2 | Z16: 2 | AA16: 31
C17: الاربعاء | D17: 1442/4/10 | E17: علمي | F17: قرآن | G17: حاضر | H17: يوسف | I17: 7 | J17: 2 | K17: يوسف | L17: 5 | M17: 1 | N17: السورة التي قبلها | O17: 22 | P17: 14 | Q17: جزئين | R17: 20 | S17: 2 | T17: الاحكام العامة | U17: 3 | V17: 5 | W17: 4 | X17: 6 | Y17: 1 | Z17: 3 | AA17: 22
C18: الخميس | D18: 1442/4/11 | E18: علمي | F18: قرآن | G18: حاضر | H18: الرعد | I18: 5 | J18: 1 | K18: الرعد | L18: 2 | M18: 2 | N18: السورة التي قبلها | O18: 55 | P18: 1 | Q18: جزئين | R18: 20 | S18: 5 | T18: التجويد | U18: 6 | V18: 9 | W18: 2 | X18: 2 | Y18: 4 | Z18: 5 | AA18: 28
C19: الاحد | D19: 1442/4/14 | E19: علمي | F19: قرآن | G19: حاضر | H19: ابراهيم | I19: 2 | J19: 0 | K19: ابراهيم | L19: 54 | M19: 1 | N19: السورة التي قبلها | O19: 66 | P19: 2 | Q19: جزئين | R19: 20 | S19: 8 | T19: الاداء | U19: 4 | V19: 2 | W19: 3 | X19: 3 | Y19: 5 | Z19: 2 | AA19: 19
C20: الاثنين | D20: 1442/4/15 | E20: علمي | F20: قرآن | G20: حاضر | H20: الحجر | I20: 3 | J20: 2 | K20: الحجر | L20: 4 | M20: 4 | N20: السورة التي قبلها | O20: 55 | P20: 4 | Q20: جزئين | R20: 20 | S20: 6 | T20: الاحكام العامة | U20: 2 | V20: 5 | W20: 6 | X20: 6 | Y20: 6 | Z20: 10 | AA20: 35
C21: الثلاثاء | D21: 1442/4/16 | E21: علمي | F21: قرآن | G21: حاضر | H21: النحل | I21: 6 | J21: 1 | K21: النحل | L21: 2 | M21: 2 | N21: السورة التي قبلها | O21: 66 | P21: 5 | Q21: جزئين | R21: 20 | S21: 4 | T21: التجويد | U21: 5 | V21: 3 | W21: 4 | X21: 4 | Y21: 2 | Z21: 2 | AA21: 20
C22: الاربعاء | D22: 1442/4/17 | E22: علمي | F22: قرآن | G22: حاضر | H22: الاسراء | I22: 4 | J22: 0 | K22: الاسراء | L22: 5 | M22: 5 | N22: السورة التي قبلها | O22: 99 | P22: 2 | Q22: جزئين | R22: 20 | S22: 2 | T22: الاداء | U22: 4 | V22: 1 | W22: 2 | X22: 2 | Y22: 5 | Z22: 5 | AA22: 19
C23: الخميس | D23: 1442/4/18 | E23: علمي | F23: قرآن | G23: حاضر | H23: الكهف | I23: 2 | J23: 2 | K23: الكهف | L23: 6 | M23: 3 | N23: السورة التي قبلها | O23: 22 | P23: 5 | Q23: جزئين | R23: 20 | S23: 2 | T23: الاحكام العامة | U23: 2 | V23: 2 | W23: 5 | X23: 5 | Y23: 2 | Z23: 3 | AA23: 19
C24: الاحد | D24: 1442/4/21 | E24: علمي | F24: قرآن | G24: حاضر | H24: مريم | I24: 4 | J24: 1 | K24: مريم | L24: 2 | M24: 12 | N24: السورة التي قبلها | O24: 66 | P24: 3 | Q24: جزئين | R24: 20 | S24: 3 | T24: التجويد | U24: 2 | V24: 6 | W24: 8 | X24: 3 | Y24: 1 | Z24: 6 | AA24: 26
C25: الاثنين | D25: 1442/4/22 | E25: علمي | F25: قرآن | G25: حاضر | H25: طه | I25: 8 | J25: 0 | K25: طه | L25: 4 | M25: 3 | N25: السورة التي قبلها | O25: 99 | P25: 6 | Q25: جزئين | R25: 20 | S25: 6 | T25: الاداء | U25: 6 | V25: 3 | W25: 9 | X25: 6 | Y25: 4 | Z25: 4 | AA25: 32
C26: الثلاثاء | D26: 1442/4/23 | E26: علمي | F26: قرآن | G26: حاضر | H26: الانبياء | I26: 5 | J26: 3 | K26: الانبياء | L26: 1 | M26: 5 | N26: السورة التي قبلها | O26: 55 | P26: 2 | Q26: جزئين | R26: 20 | S26: 4 | T26: الاحكام العامة | U26: 4 | V26: 5 | W26: 7 | X26: 4 | Y26: 5 | Z26: 4 | AA26: 29
C27: الاربعاء | D27: 1442/4/24 | E27: علمي | F27: قرآن | G27: حاضر | H27: الحج | I27: 2 | J27: 1 | K27: الحج | L27: 2 | M27: 2 | N27: السورة التي قبلها | O27: 22 | P27: 1 | Q27: جزئين | R27: 20 | S27: 2 | T27: التجويد | U27: 2 | V27: 2 | W27: 1 | X27: 2 | Y27: 8 | Z27: 2 | AA27: 17
C28: الخميس | D28: 1442/4/25 | E28: علمي | F28: قرآن | G28: حاضر | H28: المؤمنون | I28: 5 | J28: 0 | K28: المؤمنون | L28: 3 | M28: 1 | N28: السورة التي قبلها | O28: 33 | P28: 2 | Q28: جزئين | R28: 20 | S28: 5 | T28: الاداء | U28: 3 | V28: 1 | W28: 5 | X28: 5 | Y28: 3 | Z28: 5 | AA28: 22

Sheet موسى ابراهيم
D1: برنامج المتابعة الالكترونية التجريبي لحلقة عبد الله بن مسعود | H1: بمكة المكرمة | J1: التابعة لجمعية | K1: تحفيظ القرآن الكريم | N1: نسعى لمواكبة العصر في تطوراته لخدمة كتاب الله عزوجل | R1: 1 | S1: تعليما | T1: 2 | U1: وتعلما | V1: 3 | W1: وتقنيا | X1: على وفق خطة مرسومة | Z1: بالقرآن نرقى وبه نرتقي | AA1: أنشأه: عبد الرحمن إمام
C2: تاريخ بداية الحلقة | D2: معلم الحلقة | H2: اسم الحلقة | K2: عدد أسطر الدرس | L2: =I9+I10+I11+I12+I13+I14+I15+I16+I17+I18+I19+I20+I21+I22+I23+I24+I25+I26+I27+I28 -> 71 | N2: عدد صفحات الدرس المحفوظ | O2: =L2/15 -> 4.733333333 | Q2: عدد الأخطاء | R2: =J9+J10+J11+J12+J13+J14+J15+J16+J17+J18+J19+J20+J21+J22+J23+J24+J25+J26+J27+J28 -> 20 | U2: المواظبة | V2: السلوك | X2: نسبة الفصل الأول | Y2: المستوى الحالي | Z2: أبيات التحفة المحفوظة | AA2: معدل الدرجات
C3: 1441/12/18 | D3: عبد الرحمن إمام موسى عثمان | H3: عبد الله بن مسعود رضي الله عنه | K3: عدد أسطر بداية السورة | L3: =L9+L10+L11+L12+L13+L14+L15+L16+L17+L18+L19+L20+L21+L22+L23+L24+L25+L26+L27+L28 -> 87 | N3: عدد صفحات بداية السورة | O3: =L3/15 -> 5.8 | Q3: عدد الأخطاء | R3: =M9+M10+M11+M12+M13+M14+M15+M16+M17+M18+M19+M20+M21+M22+M23+M24+M25+M26+M27+M28 -> 21 | T3: حضور مبكر | V3: عدد أيام التأخر | X3: =AA3 -> 115.8333333 | AA3: =AA5/6 -> 115.8333333
C4: اسم الطالب | D4: موسى ابراهيم | H4: رقم الطالب | I4: 1002 | K4: عدد أسطر سورة قبل الدرس | L4: =O9+O10+O11+O12+O13+O14+O15+O16+O17+O18+O19+O20+O21+O22+O23+O24+O25+O26+O27+O28 -> 168 | N4: عدد صفحات سورة قبل الدرس | O4: =L4/15 -> 11.2 | Q4: عدد الأخطاء | R4: =P9+P10+P11+P12+P13+P14+P15+P16+P17+P18+P19+P20+P21+P22+P23+P24+P25+P26+P27+P28 -> 20 | T4: =COUNTIFS(G9:G28,"ح") -> 0 | V4: =COUNTIF(G9:G28,"ت") -> 0 | X4: نسبة الفصل الثاني | Y4: درجة أخر اختبار | Z4: أبيات الجزرية المحفوظة | AA4: مجموع النقاط
C5: رسالة خاصة بالطالب | K5: عدد أسطر المراجعة | L5: =R9+R10+R11+R12+R13+R14+R15+R16+R17+R18+R19+R20+R21+R22+R23+R24+R25+R26+R27+R28 -> 135 | N5: عدد صفحات المراجعة | O5: =L5/15 -> 9 | Q5: عدد الأخطاء | R5: =S9+S10+S11+S12+S13+S14+S15+S16+S17+S18+S19+S20+S21+S22+S23+S24+S25+S26+S27+S28 -> 39 | T5: استئذان | V5: عدد أيام الغياب | AA5: =AA9+AA10+AA11+AA12+AA13+AA14+AA15+AA16+AA17+AA18+AA19+AA20+AA21+AA22+AA23+AA24+AA25+AA26+AA27+AA28 -> 695
C6: رسالة خاصة بالحلقة | G6: وقتها | H6: بعد صلاة العشاء عن بعد | N6: المجموع الكلي لصفحات المراجعة | T6: =COUNTIF(G9:G28,"م") -> 0 | V6: =COUNTIF(G9:G28,"غ") -> 0 | X6: المعدل الكلي | Z6: أبيات الشاطبية المحفوظة | AA6: النقاط المستبدلة
D7: مدة تجربة البرنامج من تاريخ 1442/3/22هـ إلى نهاية الفصل الأول 1442/4/25 هــ | N7: =O5+O4+O3 -> 26
C8: الأيام | D8: التاريخ | E8: المسار | F8: المقررات | G8: تحضير | H8: الدرس | I8: سطر | J8: خطأ | K8: بداية السورة | L8: سطر | M8: خطأ | N8: سورة قبل الدرس | O8: سطر | P8: خطأ | Q8: المراجعة | R8: سطر | S8: خطأ | T8: ملاحظات في التسميع | U8: الدرس 10 | V8: التجويد 10 | W8: بداية السورة 10 | X8: سورة قبل الدرس 10 | Y8: المراجعة 10 | Z8: المشاركة+ التفاعل 10 | AA8: مجموع النقاط اليومي | AB8: الملاحظات
C9: الاحد | D9: 1442/3/29 | E9: علمي | F9: قرآن | G9: حاضر | H9: البقرة | I9: 5 | J9: 1 | K9: محفوظ | L9: 3 | M9: 3 | N9: محفوظ | O9: 2 | P9: 1 | Q9: لم يحفظ | R9: 2 | S9: 0 | T9: لا توجد | U9: 5 | V9: 9 | W9: 8 | X9: 1 | Y9: 9 | Z9: 1 | AA9: =Z9+Y9+X9+W9+U9+V9 -> 33
C10: الاثنين | D10: 1442/4/1 | E10: علمي | F10: قرآن | G10: حاضر | H10: آل عمران | I10: 2 | J10: 0 | K10: لم يحفظ | L10: 5 | M10: 2 | N10: محفوظ | O10: 74 | P10: 2 | Q10: لم يحفظ | R10: 0 | S10: 1 | T10: لا توجد | U10: 2 | V10: 6 | W10: 5 | X10: 2 | Y10: 6 | Z10: 2 | AA10: =Z10+Y10+X10+W10+U10+V10 -> 23
C11: الثلاثاء | D11: 1442/4/2 | E11: علمي | F11: قرآن | G11: حاضر | H11: النساء | I11: 3 | J11: 2 | K11: محفوظ | L11: 6 | M11: 0 | N11: لم يحفظ | O11: 2 | P11: 0 | Q11: لم يسمع | R11: 1 | S11: 2 | T11: أحكام التتجويد | U11: 3 | V11: 3 | W11: 2 | X11: 3 | Y11: 3 | Z11: 3 | AA11: 17
C12: الاربعاء | D12: 1442/4/3 | E12: علمي | F12: قرآن | G12: حاضر | H12: المائدة | I12: 6 | J12: 0 | K12: لم يحفظ | L12: 2 | M12: 1 | N12: لم يحفظ | O12: 3 | P12: 0 | Q12: لم يسمع | R12: 2 | S12: 0 | T12: التفسير | U12: 6 | V12: 2 | W12: 1 | X12: 4 | Y12: 2 | Z12: 6 | AA12: 21
C13: الخميس | D13: 1442/4/4 | E13: علمي | F13: قرآن | G13: حاضر | H13: البقرة | I13: 4 | J13: 1 | K13: محفوظ | L13: 5 | M13: 2 | N13: محفوظ | O13: 5 | P13: 2 | Q13: حافظ | R13: 5 | S13: 1 | T13: المد واحكامه | U13: 5 | V13: 5 | W13: 4 | X13: 5 | Y13: 1 | Z13: 9 | AA13: 29
C14: الاحد | D14: 1442/4/7 | E14: علمي | F14: قرآن | G14: حاضر | H14: آل عمران | I14: 2 | J14: 2 | K14: لم يحفظ | L14: 8 | M14: 0 | N14: محفوظ | O14: 2 | P14: 1 | Q14: لم يحفظ | R14: 0 | S14: 2 | T14: القلقلة | U14: 2 | V14: 8 | W14: 7 | X14: 6 | Y14: 4 | Z14: 8 | AA14: 35
C15: الاثنين | D15: 1442/4/8 | E15: علمي | F15: قرآن | G15: حاضر | H15: النساء | I15: 5 | J15: 0 | K15: محفوظ | L15: 9 | M15: 1 | N15: لم يحفظ | O15: 5 | P15: 0 | Q15: لم يحفظ | R15: 54 | S15: 0 | T15: لا توجد | U15: 1 | V15: 7 | W15: 8 | X15: 8 | Y15: 5 | Z15: 52 | AA15: 81
C16: الثلاثاء | D16: 1442/4/9 | E16: علمي | F16: قرآن | G16: حاضر | H16: المائدة | I16: 3 | J16: 1 | K16: لم يحفظ | L16: 5 | M16: 2 | N16: لم يحفظ | O16: 4 | P16: 2 | Q16: لم يسمع | R16: 1 | S16: 1 | T16: لا توجد | U16: 4 | V16: 4 | W16: 9 | X16: 9 | Y16: 8 | Z16: 2 | AA16: 36
C17: الاربعاء | D17: 1442/4/10 | E17: علمي | F17: قرآن | G17: حاضر | H17: البقرة | I17: 6 | J17: 2 | K17: محفوظ | L17: 2 | M17: 0 | N17: محفوظ | O17: 1 | P17: 1 | Q17: لم يسمع | R17: 2 | S17: 2 | T17: أحكام التتجويد | U17: 5 | V17: 1 | W17: 6 | X17: 7 | Y17: 7 | Z17: 3 | AA17: 29
C18: الخميس | D18: 1442/4/11 | E18: علمي | F18: قرآن | G18: حاضر | H18: آل عمران | I18: 2 | J18: 1 | K18: لم يحفظ | L18: 3 | M18: 1 | N18: محفوظ | O18: 2 | P18: 0 | Q18: حافظ | R18: 5 | S18: 0 | T18: التفسير | U18: 2 | V18: 2 | W18: 3 | X18: 4 | Y18: 4 | Z18: 6 | AA18: 21
C19: الاحد | D19: 1442/4/14 | E19: علمي | F19: قرآن | G19: حاضر | H19: النساء | I19: 5 | J19: 1 | K19: محفوظ | L19: 6 | M19: 2 | N19: لم يحفظ | O19: 5 | P19: 2 | Q19: لم يحفظ | R19: 4 | S19: 12 | T19: المد واحكامه | U19: 3 | V19: 5 | W19: 2 | X19: 5 | Y19: 5 | Z19: 5 | AA19: 25
C20: الاثنين | D20: 1442/4/15 | E20: علمي | F20: قرآن | G20: حاضر | H20: المائدة | I20: 1 | J20: 0 | K20: لم يحفظ | L20: 4 | M20: 0 | N20: لم يحفظ | O20: 2 | P20: 1 | Q20: لم يحفظ | R20: 2 | S20: 0 | T20: القلقلة | U20: 6 | V20: 8 | W20: 1 | X20: 2 | Y20: 2 | Z20: 2 | AA20: 21
C21: الثلاثاء | D21: 1442/4/16 | E21: علمي | F21: قرآن | G21: حاضر | H21: البقرة | I21: 2 | J21: 2 | K21: محفوظ | L21: 2 | M21: 1 | N21: محفوظ | O21: 3 | P21: 0 | Q21: لم يسمع | R21: 5 | S21: 1 | T21: لا توجد | U21: 5 | V21: 9 | W21: 4 | X21: 5 | Y21: 1 | Z21: 3 | AA21: 27
C22: الاربعاء | D22: 1442/4/17 | E22: علمي | F22: قرآن | G22: حاضر | H22: آل عمران | I22: 3 | J22: 1 | K22: لم يحفظ | L22: 5 | M22: 2 | N22: محفوظ | O22: 5 | P22: 2 | Q22: لم يسمع | R22: 2 | S22: 2 | T22: لا توجد | U22: 1 | V22: 6 | W22: 78 | X22: 2 | Y22: 3 | Z22: 6 | AA22: 96
C23: الخميس | D23: 1442/4/18 | E23: علمي | F23: قرآن | G23: حاضر | H23: النساء | I23: 5 | J23: 0 | K23: محفوظ | L23: 3 | M23: 0 | N23: لم يحفظ | O23: 2 | P23: 1 | Q23: حافظ | R23: 1 | S23: 0 | T23: أحكام التتجويد | U23: 2 | V23: 3 | W23: 5 | X23: 2 | Y23: 6 | Z23: 5 | AA23: 23
C24: الاحد | D24: 1442/4/21 | E24: علمي | F24: قرآن | G24: حاضر | H24: المائدة | I24: 2 | J24: 2 | K24: لم يحفظ | L24: 6 | M24: 1 | N24: لم يحفظ | O24: 5 | P24: 0 | Q24: لم يحفظ | R24: 32 | S24: 1 | T24: التفسير | U24: 5 | V24: 2 | W24: 2 | X24: 2 | Y24: 9 | Z24: 2 | AA24: 22
C25: الاثنين | D25: 1442/4/22 | E25: علمي | F25: قرآن | G25: حاضر | H25: البقرة | I25: 5 | J25: 1 | K25: محفوظ | L25: 5 | M25: 2 | N25: محفوظ | O25: 2 | P25: 2 | Q25: لم يحفظ | R25: 5 | S25: 2 | T25: المد واحكامه | U25: 8 | V25: 8 | W25: 36 | X25: 3 | Y25: 8 | Z25: 3 | AA25: 66
C26: الثلاثاء | D26: 1442/4/23 | E26: علمي | F26: قرآن | G26: حاضر | H26: آل عمران | I26: 2 | J26: 0 | K26: لم يحفظ | L26: 2 | M26: 0 | N26: محفوظ | O26: 36 | P26: 1 | Q26: لم يسمع | R26: 5 | S26: 0 | T26: القلقلة | U26: 9 | V26: 8 | W26: 9 | X26: 5 | Y26: 5 | Z26: 6 | AA26: 42
C27: الاربعاء | D27: 1442/4/24 | E27: علمي | F27: قرآن | G27: حاضر | H27: النساء | I27: 2 | J27: 2 | K27: محفوظ | L27: 1 | M27: 1 | N27: لم يحفظ | O27: 6 | P27: 0 | Q27: لم يسمع | R27: 2 | S27: 12 | T27: لا توجد | U27: 2 | V27: 7 | W27: 8 | X27: 4 | Y27: 2 | Z27: 2 | AA27: 25
C28: الخميس | D28: 1442/4/25 | E28: علمي | F28: قرآن | G28: حاضر | H28: المائدة | I28: 6 | J28: 1 | K28: لم يحفظ | L28: 5 | M28: 0 | N28: لم يحفظ | O28: 2 | P28: 2 | Q28: حافظ | R28: 5 | S28: 0 | T28: لا توجد | U28: 9 | V28: 1 | W28: 7 | X28: 2 | Y28: 1 | Z28: 3 | AA28: 23

Sheet سطام القرشي
D1: برنامج المتابعة الالكترونية التجريبي لحلقة عبد الله بن مسعود | H1: بمكة المكرمة | J1: التابعة لجمعية | K1: تحفيظ القرآن الكريم | N1: نسعى لمواكبة العصر في تطوراته لخدمة كتاب الله عزوجل | R1: 1 | S1: تعليما | T1: 2 | U1: وتعلما | V1: 3 | W1: وتقنيا | X1: على وفق خطة مرسومة | Z1: بالقرآن نرقى وبه نرتقي | AA1: أنشأه: عبد الرحمن إمام
C2: تاريخ بداية الحلقة | D2: معلم الحلقة | H2: اسم الحلقة | K2: عدد أسطر الدرس | L2: =I9+I10+I11+I12+I13+I14+I15+I16+I17+I18+I19+I20+I21+I22+I23+I24+I25+I26+I27+I28 -> 75 | N2: عدد صفحات الدرس المحفوظ | O2: =L2/15 -> 5 | Q2: عدد الأخطاء | R2: =J9+J10+J11+J12+J13+J14+J15+J16+J17+J18+J19+J20+J21+J22+J23+J24+J25+J26+J27+J28 -> 70 | U2: المواظبة | V2: السلوك | X2: نسبة الفصل الأول | Y2: المستوى الحالي | Z2: أبيات التحفة المحفوظة | AA2: معدل الدرجات
C3: 1441/12/18 | D3: عبد الرحمن إمام موسى عثمان | H3: عبد الله بن مسعود رضي الله عنه | K3: عدد أسطر بداية السورة | L3: =L9+L10+L11+L12+L13+L14+L15+L16+L17+L18+L19+L20+L21+L22+L23+L24+L25+L26+L27+L28 -> 0 | N3: عدد صفحات بداية السورة | O3: =L3/15 -> 0 | Q3: عدد الأخطاء | R3: =M9+M10+M11+M12+M13+M14+M15+M16+M17+M18+M19+M20+M21+M22+M23+M24+M25+M26+M27+M28 -> 0 | T3: حضور مبكر | V3: عدد أيام التأخر | X3: =AA3 -> 0 | AA3: =AA5/6 -> 0
C4: اسم الطالب | D4: سطام القرشي | H4: رقم الطالب | I4: 1003 | K4: عدد أسطر سورة قبل الدرس | L4: =O9+O10+O11+O12+O13+O14+O15+O16+O17+O18+O19+O20+O21+O22+O23+O24+O25+O26+O27+O28 -> 0 | N4: عدد صفحات سورة قبل الدرس | O4: =L4/15 -> 0 | Q4: عدد الأخطاء | R4: =P9+P10+P11+P12+P13+P14+P15+P16+P17+P18+P19+P20+P21+P22+P23+P24+P25+P26+P27+P28 -> 0 | T4: =COUNTIFS(G9:G28,"ح") -> 0 | V4: =COUNTIF(G9:G28,"ت") -> 0 | X4: نسبة الفصل الثاني | Y4: درجة أخر اختبار | Z4: أبيات الجزرية المحفوظة | AA4: مجموع النقاط
C5: رسالة خاصة بالطالب | K5: عدد أسطر المراجعة | L5: =R9+R10+R11+R12+R13+R14+R15+R16+R17+R18+R19+R20+R21+R22+R23+R24+R25+R26+R27+R28 -> 0 | N5: عدد صفحات المراجعة | O5: =L5/15 -> 0 | Q5: عدد الأخطاء | R5: =S9+S10+S11+S12+S13+S14+S15+S16+S17+S18+S19+S20+S21+S22+S23+S24+S25+S26+S27+S28 -> 0 | T5: استئذان | V5: عدد أيام الغياب | AA5: =AA9+AA10+AA11+AA12+AA13+AA14+AA15+AA16+AA17+AA18+AA19+AA20+AA21+AA22+AA23+AA24+AA25+AA26+AA27+AA28 -> 0
C6: رسالة خاصة بالحلقة | G6: وقتها | H6: بعد صلاة العشاء عن بعد | N6: المجموع الكلي لصفحات المراجعة | T6: =COUNTIF(G9:G28,"م") -> 0 | V6: =COUNTIF(G9:G28,"غ") -> 0 | X6: المعدل الكلي | Z6: أبيات الشاطبية المحفوظة | AA6: النقاط المستبدلة
D7: مدة تجربة البرنامج من تاريخ 1442/3/22هـ إلى نهاية الفصل الأول 1442/4/25 هــ | N7: =O5+O4+O3 -> 0
C8: الأيام | D8: التاريخ | E8: المسار | F8: المقررات | G8: تحضير | H8: الدرس | I8: سطر | J8: خطأ | K8: بداية السورة | L8: سطر | M8: خطأ | N8: سورة قبل الدرس | O8: سطر | P8: خطأ | Q8: المراجعة | R8: سطر | S8: خطأ | T8: ملاحظات في التسميع | U8: الدرس 10 | V8: التجويد 10 | W8: بداية السورة 10 | X8: سورة قبل الدرس 10 | Y8: المراجعة 10 | Z8: المشاركة+ التفاعل 10 | AA8: مجموع النقاط اليومي | AB8: الملاحظات
C9: الاحد | D9: 1442/3/29 | E9: علمي | F9: قرآن | G9: حاضر | H9: الاحقاف | I9: 2 | J9: 0 | K9: لم يحفظ | L9: 0 | M9: 0 | N9: لم يحفظ | O9: 0 | P9: 0 | Q9: لم يحفظ | R9: 0 | S9: 0 | T9: كل ملاحظات القراءة | U9: 0 | V9: 0 | W9: 0 | X9: 0 | Y9: 0 | Z9: 0 | AA9: =Z9+Y9+X9+W9+U9+V9 -> 0
C10: الاثنين | D10: 1442/4/1 | E10: علمي | F10: قرآن | G10: حاضر | H10: محمد | I10: 3 | J10: 2 | K10: لم يحفظ | L10: 0 | M10: 0 | N10: لم يحفظ | O10: 0 | P10: 0 | Q10: لم يحفظ | R10: 0 | S10: 0 | T10: كل ملاحظات القراءة | U10: 0 | V10: 0 | W10: 0 | X10: 0 | Y10: 0 | Z10: 0 | AA10: =Z10+Y10+X10+W10+U10+V10 -> 0
C11: الثلاثاء | D11: 1442/4/2 | E11: علمي | F11: قرآن | G11: حاضر | H11: الحجرات | I11: 6 | J11: 1 | K11: لم يحفظ | L11: 0 | M11: 0 | N11: لم يحفظ | O11: 0 | P11: 0 | Q11: لم يحفظ | R11: 0 | S11: 0 | T11: كل ملاحظات القراءة | U11: 0 | V11: 0 | W11: 0 | X11: 0 | Y11: 0 | Z11: 0 | AA11: 0
C12: الاربعاء | D12: 1442/4/3 | E12: علمي | F12: قرآن | G12: حاضر | H12: ق | I12: 4 | J12: 2 | K12: لم يحفظ | L12: 0 | M12: 0 | N12: لم يحفظ | O12: 0 | P12: 0 | Q12: لم يحفظ | R12: 0 | S12: 0 | T12: كل ملاحظات القراءة | U12: 0 | V12: 0 | W12: 0 | X12: 0 | Y12: 0 | Z12: 0 | AA12: 0
C13: الخميس | D13: 1442/4/4 | E13: علمي | F13: قرآن | G13: حاضر | H13: الاحقاف | I13: 2 | J13: 1 | K13: لم يحفظ | L13: 0 | M13: 0 | N13: لم يحفظ | O13: 0 | P13: 0 | Q13: لم يحفظ | R13: 0 | S13: 0 | T13: كل ملاحظات القراءة | U13: 0 | V13: 0 | W13: 0 | X13: 0 | Y13: 0 | Z13: 0 | AA13: 0
C14: الاحد | D14: 1442/4/7 | E14: علمي | F14: قرآن | G14: حاضر | H14: محمد | I14: 5 | J14: 2 | K14: لم يحفظ | L14: 0 | M14: 0 | N14: لم يحفظ | O14: 0 | P14: 0 | Q14: لم يحفظ | R14: 0 | S14: 0 | T14: كل ملاحظات القراءة | U14: 0 | V14: 0 | W14: 0 | X14: 0 | Y14: 0 | Z14: 0 | AA14: 0
C15: الاثنين | D15: 1442/4/8 | E15: علمي | F15: قرآن | G15: حاضر | H15: الحجرات | I15: 3 | J15: 12 | K15: لم يحفظ | L15: 0 | M15: 0 | N15: لم يحفظ | O15: 0 | P15: 0 | Q15: لم يحفظ | R15: 0 | S15: 0 | T15: كل ملاحظات القراءة | U15: 0 | V15: 0 | W15: 0 | X15: 0 | Y15: 0 | Z15: 0 | AA15: 0
C16: الثلاثاء | D16: 1442/4/9 | E16: علمي | F16: قرآن | G16: حاضر | H16: ق | I16: 6 | J16: 1 | K16: لم يحفظ | L16: 0 | M16: 0 | N16: لم يحفظ | O16: 0 | P16: 0 | Q16: لم يحفظ | R16: 0 | S16: 0 | T16: كل ملاحظات القراءة | U16: 0 | V16: 0 | W16: 0 | X16: 0 | Y16: 0 | Z16: 0 | AA16: 0
C17: الاربعاء | D17: 1442/4/10 | E17: علمي | F17: قرآن | G17: حاضر | H17: الاحقاف | I17: 2 | J17: 2 | K17: لم يحفظ | L17: 0 | M17: 0 | N17: لم يحفظ | O17: 0 | P17: 0 | Q17: لم يحفظ | R17: 0 | S17: 0 | T17: كل ملاحظات القراءة | U17: 0 | V17: 0 | W17: 0 | X17: 0 | Y17: 0 | Z17: 0 | AA17: 0
C18: الخميس | D18: 1442/4/11 | E18: علمي | F18: قرآن | G18: حاضر | H18: محمد | I18: 5 | J18: 0 | K18: لم يحفظ | L18: 0 | M18: 0 | N18: لم يحفظ | O18: 0 | P18: 0 | Q18: لم يحفظ | R18: 0 | S18: 0 | T18: كل ملاحظات القراءة | U18: 0 | V18: 0 | W18: 0 | X18: 0 | Y18: 0 | Z18: 0 | AA18: 0
C19: الاحد | D19: 1442/4/14 | E19: علمي | F19: قرآن | G19: حاضر | H19: الحجرات | I19: 2 | J19: 2 | K19: لم يحفظ | L19: 0 | M19: 0 | N19: لم يحفظ | O19: 0 | P19: 0 | Q19: لم يحفظ | R19: 0 | S19: 0 | T19: كل ملاحظات القراءة | U19: 0 | V19: 0 | W19: 0 | X19: 0 | Y19: 0 | Z19: 0 | AA19: 0
C20: الاثنين | D20: 1442/4/15 | E20: علمي | F20: قرآن | G20: حاضر | H20: ق | I20: 3 | J20: 12 | K20: لم يحفظ | L20: 0 | M20: 0 | N20: لم يحفظ | O20: 0 | P20: 0 | Q20: لم يحفظ | R20: 0 | S20: 0 | T20: كل ملاحظات القراءة | U20: 0 | V20: 0 | W20: 0 | X20: 0 | Y20: 0 | Z20: 0 | AA20: 0
C21: الثلاثاء | D21: 1442/4/16 | E21: علمي | F21: قرآن | G21: حاضر | H21: الاحقاف | I21: 5 | J21: 1 | K21: لم يحفظ | L21: 0 | M21: 0 | N21: لم يحفظ | O21: 0 | P21: 0 | Q21: لم يحفظ | R21: 0 | S21: 0 | T21: كل ملاحظات القراءة | U21: 0 | V21: 0 | W21: 0 | X21: 0 | Y21: 0 | Z21: 0 | AA21: 0
C22: الاربعاء | D22: 1442/4/17 | E22: علمي | F22: قرآن | G22: حاضر | H22: محمد | I22: 5 | J22: 2 | K22: لم يحفظ | L22: 0 | M22: 0 | N22: لم يحفظ | O22: 0 | P22: 0 | Q22: لم يحفظ | R22: 0 | S22: 0 | T22: كل ملاحظات القراءة | U22: 0 | V22: 0 | W22: 0 | X22: 0 | Y22: 0 | Z22: 0 | AA22: 0
C23: الخميس | D23: 1442/4/18 | E23: علمي | F23: قرآن | G23: حاضر | H23: الحجرات | I23: 2 | J23: 12 | K23: لم يحفظ | L23: 0 | M23: 0 | N23: لم يحفظ | O23: 0 | P23: 0 | Q23: لم يحفظ | R23: 0 | S23: 0 | T23: كل ملاحظات القراءة | U23: 0 | V23: 0 | W23: 0 | X23: 0 | Y23: 0 | Z23: 0 | AA23: 0
C24: الاحد | D24: 1442/4/21 | E24: علمي | F24: قرآن | G24: حاضر | H24: ق | I24: 3 | J24: 12 | K24: لم يحفظ | L24: 0 | M24: 0 | N24: لم يحفظ | O24: 0 | P24: 0 | Q24: لم يحفظ | R24: 0 | S24: 0 | T24: كل ملاحظات القراءة | U24: 0 | V24: 0 | W24: 0 | X24: 0 | Y24: 0 | Z24: 0 | AA24: 0
C25: الاثنين | D25: 1442/4/22 | E25: علمي | F25: قرآن | G25: حاضر | H25: الاحقاف | I25: 6 | J25: 2 | K25: لم يحفظ | L25: 0 | M25: 0 | N25: لم يحفظ | O25: 0 | P25: 0 | Q25: لم يحفظ | R25: 0 | S25: 0 | T25: كل ملاحظات القراءة | U25: 0 | V25: 0 | W25: 0 | X25: 0 | Y25: 0 | Z25: 0 | AA25: 0
C26: الثلاثاء | D26: 1442/4/23 | E26: علمي | F26: قرآن | G26: حاضر | H26: محمد | I26: 5 | J26: 1 | K26: لم يحفظ | L26: 0 | M26: 0 | N26: لم يحفظ | O26: 0 | P26: 0 | Q26: لم يحفظ | R26: 0 | S26: 0 | T26: كل ملاحظات القراءة | U26: 0 | V26: 0 | W26: 0 | X26: 0 | Y26: 0 | Z26: 0 | AA26: 0
C27: الاربعاء | D27: 1442/4/24 | E27: علمي | F27: قرآن | G27: حاضر | H27: الحجرات | I27: 4 | J27: 2 | K27: لم يحفظ | L27: 0 | M27: 0 | N27: لم يحفظ | O27: 0 | P27: 0 | Q27: لم يحفظ | R27: 0 | S27: 0 | T27: كل ملاحظات القراءة | U27: 0 | V27: 0 | W27: 0 | X27: 0 | Y27: 0 | Z27: 0 | AA27: 0
C28: الخميس | D28: 1442/4/25 | E28: علمي | F28: قرآن | G28: حاضر | H28: ق | I28: 2 | J28: 1 | K28: لم يحفظ | L28: 0 | M28: 0 | N28: لم يحفظ | O28: 0 | P28: 0 | Q28: لم يحفظ | R28: 0 | S28: 0 | T28: كل ملاحظات القراءة | U28: 0 | V28: 0 | W28: 0 | X28: 0 | Y28: 0 | Z28: 0 | AA28: 0

Sheet تقرير الطالب
D1: برنامج المتابعة الالكترونية التجريبي لحلقة عبد الله بن مسعود | H1: بمكة المكرمة | J1: التابعة لجمعية | K1: تحفيظ القرآن الكريم | N1: نسعى لمواكبة العصر في تطوراته لخدمة كتاب الله عزوجل | R1: 1 | S1: تعليما | T1: 2 | U1: وتعلما | V1: 3 | W1: وتقنيا | X1: على وفق خطة مرسومة | Z1: بالقرآن نرقى وبه نرتقي | AA1: أنشأه: عبد الرحمن إمام
C2: تاريخ بداية الحلقة | D2: معلم الحلقة | H2: اسم الحلقة | K2: عدد أسطر الدرس | L2: =I9+I10+I11+I12+I13+I14+I15+I16+I17+I18+I19+I20+I21+I22+I23+I24+I25+I26+I27+I28 -> 75 | N2: عدد صفحات الدرس المحفوظ | O2: =L2/15 -> 5 | Q2: عدد الأخطاء | R2: =J9+J10+J11+J12+J13+J14+J15+J16+J17+J18+J19+J20+J21+J22+J23+J24+J25+J26+J27+J28 -> 70 | U2: المواظبة | V2: السلوك | X2: نسبة الفصل الأول | Y2: المستوى الحالي | Z2: أبيات التحفة المحفوظة | AA2: معدل الدرجات
C3: 1441/12/18 | D3: عبد الرحمن إمام موسى عثمان | H3: عبد الله بن مسعود رضي الله عنه | K3: عدد أسطر بداية السورة | L3: =L9+L10+L11+L12+L13+L14+L15+L16+L17+L18+L19+L20+L21+L22+L23+L24+L25+L26+L27+L28 -> 0 | N3: عدد صفحات بداية السورة | O3: =L3/15 -> 0 | Q3: عدد الأخطاء | R3: =M9+M10+M11+M12+M13+M14+M15+M16+M17+M18+M19+M20+M21+M22+M23+M24+M25+M26+M27+M28 -> 0 | T3: حضور مبكر | V3: عدد أيام التأخر | X3: =AA3 -> 0 | AA3: =AA5/6 -> 0
C4: اسم الطالب | D4: سطام القرشي | H4: رقم الطالب | I4: 1003 | K4: عدد أسطر سورة قبل الدرس | L4: =O9+O10+O11+O12+O13+O14+O15+O16+O17+O18+O19+O20+O21+O22+O23+O24+O25+O26+O27+O28 -> 0 | N4: عدد صفحات سورة قبل الدرس | O4: =L4/15 -> 0 | Q4: عدد الأخطاء | R4: =P9+P10+P11+P12+P13+P14+P15+P16+P17+P18+P19+P20+P21+P22+P23+P24+P25+P26+P27+P28 -> 0 | T4: =COUNTIFS(G9:G28,"ح") -> 0 | V4: =COUNTIF(G9:G28,"ت") -> 0 | X4: نسبة الفصل الثاني | Y4: درجة أخر اختبار | Z4: أبيات الجزرية المحفوظة | AA4: مجموع النقاط
C5: رسالة خاصة بالطالب | K5: عدد أسطر المراجعة | L5: =R9+R10+R11+R12+R13+R14+R15+R16+R17+R18+R19+R20+R21+R22+R23+R24+R25+R26+R27+R28 -> 0 | N5: عدد صفحات المراجعة | O5: =L5/15 -> 0 | Q5: عدد الأخطاء | R5: =S9+S10+S11+S12+S13+S14+S15+S16+S17+S18+S19+S20+S21+S22+S23+S24+S25+S26+S27+S28 -> 0 | T5: استئذان | V5: عدد أيام الغياب | AA5: =AA9+AA10+AA11+AA12+AA13+AA14+AA15+AA16+AA17+AA18+AA19+AA20+AA21+AA22+AA23+AA24+AA25+AA26+AA27+AA28 -> 0
C6: رسالة خاصة بالحلقة | G6: وقتها | H6: بعد صلاة العشاء عن بعد | N6: المجموع الكلي لصفحات المراجعة | T6: =COUNTIF(G9:G28,"م") -> 0 | V6: =COUNTIF(G9:G28,"غ") -> 0 | X6: المعدل الكلي | Z6: أبيات الشاطبية المحفوظة | AA6: النقاط المستبدلة
D7: مدة تجربة البرنامج من تاريخ 1442/3/22هـ إلى نهاية الفصل الأول 1442/4/25 هــ | N7: =O5+O4+O3 -> 0
C8: الأيام | D8: التاريخ | E8: المسار | F8: المقررات | G8: تحضير | H8: الدرس | I8: سطر | J8: خطأ | K8: بداية السورة | L8: سطر | M8: خطأ | N8: سورة قبل الدرس | O8: سطر | P8: خطأ | Q8: المراجعة | R8: سطر | S8: خطأ | T8: ملاحظات في التسميع | U8: الدرس 10 | V8: التجويد 10 | W8: بداية السورة 10 | X8: سورة قبل الدرس 10 | Y8: المراجعة 10 | Z8: المشاركة+ التفاعل 10 | AA8: مجموع النقاط اليومي | AB8: الملاحظات
C9: الاحد | D9: 1442/3/29 | E9: علمي | F9: قرآن | G9: حاضر | H9: الاحقاف | I9: 2 | J9: 0 | K9: لم يحفظ | L9: 0 | M9: 0 | N9: لم يحفظ | O9: 0 | P9: 0 | Q9: لم يحفظ | R9: 0 | S9: 0 | T9: كل ملاحظات القراءة | U9: 0 | V9: 0 | W9: 0 | X9: 0 | Y9: 0 | Z9: 0 | AA9: =Z9+Y9+X9+W9+U9+V9 -> 0
C10: الاثنين | D10: 1442/4/1 | E10: علمي | F10: قرآن | G10: حاضر | H10: محمد | I10: 3 | J10: 2 | K10: لم يحفظ | L10: 0 | M10: 0 | N10: لم يحفظ | O10: 0 | P10: 0 | Q10: لم يحفظ | R10: 0 | S10: 0 | T10: كل ملاحظات القراءة | U10: 0 | V10: 0 | W10: 0 | X10: 0 | Y10: 0 | Z10: 0 | AA10: =Z10+Y10+X10+W10+U10+V10 -> 0
C11: الثلاثاء | D11: 1442/4/2 | E11: علمي | F11: قرآن | G11: حاضر | H11: الحجرات | I11: 6 | J11: 1 | K11: لم يحفظ | L11: 0 | M11: 0 | N11: لم يحفظ | O11: 0 | P11: 0 | Q11: لم يحفظ | R11: 0 | S11: 0 | T11: كل ملاحظات القراءة | U11: 0 | V11: 0 | W11: 0 | X11: 0 | Y11: 0 | Z11: 0 | AA11: 0
C12: الاربعاء | D12: 1442/4/3 | E12: علمي | F12: قرآن | G12: حاضر | H12: ق | I12: 4 | J12: 2 | K12: لم يحفظ | L12: 0 | M12: 0 | N12: لم يحفظ | O12: 0 | P12: 0 | Q12: لم يحفظ | R12: 0 | S12: 0 | T12: كل ملاحظات القراءة | U12: 0 | V12: 0 | W12: 0 | X12: 0 | Y12: 0 | Z12: 0 | AA12: 0
C13: الخميس | D13: 1442/4/4 | E13: علمي | F13: قرآن | G13: حاضر | H13: الاحقاف | I13: 2 | J13: 1 | K13: لم يحفظ | L13: 0 | M13: 0 | N13: لم يحفظ | O13: 0 | P13: 0 | Q13: لم يحفظ | R13: 0 | S13: 0 | T13: كل ملاحظات القراءة | U13: 0 | V13: 0 | W13: 0 | X13: 0 | Y13: 0 | Z13: 0 | AA13: 0
C14: الاحد | D14: 1442/4/7 | E14: علمي | F14: قرآن | G14: حاضر | H14: محمد | I14: 5 | J14: 2 | K14: لم يحفظ | L14: 0 | M14: 0 | N14: لم يحفظ | O14: 0 | P14: 0 | Q14: لم يحفظ | R14: 0 | S14: 0 | T14: كل ملاحظات القراءة | U14: 0 | V14: 0 | W14: 0 | X14: 0 | Y14: 0 | Z14: 0 | AA14: 0
C15: الاثنين | D15: 1442/4/8 | E15: علمي | F15: قرآن | G15: حاضر | H15: الحجرات | I15: 3 | J15: 12 | K15: لم يحفظ | L15: 0 | M15: 0 | N15: لم يحفظ | O15: 0 | P15: 0 | Q15: لم يحفظ | R15: 0 | S15: 0 | T15: كل ملاحظات القراءة | U15: 0 | V15: 0 | W15: 0 | X15: 0 | Y15: 0 | Z15: 0 | AA15: 0
C16: الثلاثاء | D16: 1442/4/9 | E16: علمي | F16: قرآن | G16: حاضر | H16: ق | I16: 6 | J16: 1 | K16: لم يحفظ | L16: 0 | M16: 0 | N16: لم يحفظ | O16: 0 | P16: 0 | Q16: لم يحفظ | R16: 0 | S16: 0 | T16: كل ملاحظات القراءة | U16: 0 | V16: 0 | W16: 0 | X16: 0 | Y16: 0 | Z16: 0 | AA16: 0
C17: الاربعاء | D17: 1442/4/10 | E17: علمي | F17: قرآن | G17: حاضر | H17: الاحقاف | I17: 2 | J17: 2 | K17: لم يحفظ | L17: 0 | M17: 0 | N17: لم يحفظ | O17: 0 | P17: 0 | Q17: لم يحفظ | R17: 0 | S17: 0 | T17: كل ملاحظات القراءة | U17: 0 | V17: 0 | W17: 0 | X17: 0 | Y17: 0 | Z17: 0 | AA17: 0
C18: الخميس | D18: 1442/4/11 | E18: علمي | F18: قرآن | G18: حاضر | H18: محمد | I18: 5 | J18: 0 | K18: لم يحفظ | L18: 0 | M18: 0 | N18: لم يحفظ | O18: 0 | P18: 0 | Q18: لم يحفظ | R18: 0 | S18: 0 | T18: كل ملاحظات القراءة | U18: 0 | V18: 0 | W18: 0 | X18: 0 | Y18: 0 | Z18: 0 | AA18: 0
C19: الاحد | D19: 1442/4/14 | E19: علمي | F19: قرآن | G19: حاضر | H19: الحجرات | I19: 2 | J19: 2 | K19: لم يحفظ | L19: 0 | M19: 0 | N19: لم يحفظ | O19: 0 | P19: 0 | Q19: لم يحفظ | R19: 0 | S19: 0 | T19: كل ملاحظات القراءة | U19: 0 | V19: 0 | W19: 0 | X19: 0 | Y19: 0 | Z19: 0 | AA19: 0
C20: الاثنين | D20: 1442/4/15 | E20: علمي | F20: قرآن | G20: حاضر | H20: ق | I20: 3 | J20: 12 | K20: لم يحفظ | L20: 0 | M20: 0 | N20: لم يحفظ | O20: 0 | P20: 0 | Q20: لم يحفظ | R20: 0 | S20: 0 | T20: كل ملاحظات القراءة | U20: 0 | V20: 0 | W20: 0 | X20: 0 | Y20: 0 | Z20: 0 | AA20: 0
C21: الثلاثاء | D21: 1442/4/16 | E21: علمي | F21: قرآن | G21: حاضر | H21: الاحقاف | I21: 5 | J21: 1 | K21: لم يحفظ | L21: 0 | M21: 0 | N21: لم يحفظ | O21: 0 | P21: 0 | Q21: لم يحفظ | R21: 0 | S21: 0 | T21: كل ملاحظات القراءة | U21: 0 | V21: 0 | W21: 0 | X21: 0 | Y21: 0 | Z21: 0 | AA21: 0
C22: الاربعاء | D22: 1442/4/17 | E22: علمي | F22: قرآن | G22: حاضر | H22: محمد | I22: 5 | J22: 2 | K22: لم يحفظ | L22: 0 | M22: 0 | N22: لم يحفظ | O22: 0 | P22: 0 | Q22: لم يحفظ | R22: 0 | S22: 0 | T22: كل ملاحظات القراءة | U22: 0 | V22: 0 | W22: 0 | X22: 0 | Y22: 0 | Z22: 0 | AA22: 0
C23: الخميس | D23: 1442/4/18 | E23: علمي | F23: قرآن | G23: حاضر | H23: الحجرات | I23: 2 | J23: 12 | K23: لم يحفظ | L23: 0 | M23: 0 | N23: لم يحفظ | O23: 0 | P23: 0 | Q23: لم يحفظ | R23: 0 | S23: 0 | T23: كل ملاحظات القراءة | U23: 0 | V23: 0 | W23: 0 | X23: 0 | Y23: 0 | Z23: 0 | AA23: 0
C24: الاحد | D24: 1442/4/21 | E24: علمي | F24: قرآن | G24: حاضر | H24: ق | I24: 3 | J24: 12 | K24: لم يحفظ | L24: 0 | M24: 0 | N24: لم يحفظ | O24: 0 | P24: 0 | Q24: لم يحفظ | R24: 0 | S24: 0 | T24: كل ملاحظات القراءة | U24: 0 | V24: 0 | W24: 0 | X24: 0 | Y24: 0 | Z24: 0 | AA24: 0
C25: الاثنين | D25: 1442/4/22 | E25: علمي | F25: قرآن | G25: حاضر | H25: الاحقاف | I25: 6 | J25: 2 | K25: لم يحفظ | L25: 0 | M25: 0 | N25: لم يحفظ | O25: 0 | P25: 0 | Q25: لم يحفظ | R25: 0 | S25: 0 | T25: كل ملاحظات القراءة | U25: 0 | V25: 0 | W25: 0 | X25: 0 | Y25: 0 | Z25: 0 | AA25: 0
C26: الثلاثاء | D26: 1442/4/23 | E26: علمي | F26: قرآن | G26: حاضر | H26: محمد | I26: 5 | J26: 1 | K26: لم يحفظ | L26: 0 | M26: 0 | N26: لم يحفظ | O26: 0 | P26: 0 | Q26: لم يحفظ | R26: 0 | S26: 0 | T26: كل ملاحظات القراءة | U26: 0 | V26: 0 | W26: 0 | X26: 0 | Y26: 0 | Z26: 0 | AA26: 0
C27: الاربعاء | D27: 1442/4/24 | E27: علمي | F27: قرآن | G27: حاضر | H27: الحجرات | I27: 4 | J27: 2 | K27: لم يحفظ | L27: 0 | M27: 0 | N27: لم يحفظ | O27: 0 | P27: 0 | Q27: لم يحفظ | R27: 0 | S27: 0 | T27: كل ملاحظات القراءة | U27: 0 | V27: 0 | W27: 0 | X27: 0 | Y27: 0 | Z27: 0 | AA27: 0
C28: الخميس | D28: 1442/4/25 | E28: علمي | F28: قرآن | G28: حاضر | H28: ق | I28: 2 | J28: 1 | K28: لم يحفظ | L28: 0 | M28: 0 | N28: لم يحفظ | O28: 0 | P28: 0 | Q28: لم يحفظ | R28: 0 | S28: 0 | T28: كل ملاحظات القراءة | U28: 0 | V28: 0 | W28: 0 | X28: 0 | Y28: 0 | Z28: 0 | AA28: 0
